Cogmind - Beta 16 @@@ ROGUE MODE // 2025.12.18 @ 22:35:18 Player: Levos Result: Destroyed by 0D-6O6(R) with Subdweller Shrapnel Launcher Performance ------------- Evolutions (0) 0 Regions Visited (3) 600 Robots Destroyed (5) 25 Value Destroyed (188) 188 Prototype IDs (0) 0 Alien Tech Used (0) 0 Bonus (0) 0 TOTAL SCORE: 813 Bonus ------- None Cogmind --------- Core Integrity 0/250 Matter 300/300 Energy 199/200 System Corruption 0% Temperature Cool (39) Movement Core (250) Ox4 Location -10/Subcaves Parts ------- > --- POWER (1) -------- Subdweller Power Source > --- PROPULSION (2) --- (None) > --- UTILITY (2) ------ Subdweller Optics > --- WEAPON (2) ------- Subdweller Beam Cannon > --- INVENTORY (5) ---- Subdweller Power Source Large Storage Unit Subdweller Optics Subdweller Machine Gun Subdweller Machine Gun Peak State ------------ > --- POWER ------------ Subdweller Power Source > --- PROPULSION ------- Aluminum Leg Aluminum Leg > --- UTILITY ---------- Subdweller Optics > --- WEAPON ----------- Beamcaster Subdweller Beam Cannon > --- INVENTORY -------- Subdweller Power Source Large Storage Unit Subdweller Optics Subdweller Machine Gun Scrap Shield Fragment [Rating: 13] Favorites ----------- Power Ion Engine Engine Ion Engine Propulsion Light Treads Treads Light Treads Leg Aluminum Leg Utility Heat Sink Device Heat Sink Storage Small Storage Unit Processor Signal Interpreter Protection Scrap Shield Weapon Light Assault Rifle Energy Gun Beamcaster Energy Cannon Subdweller Beam Cannon Ballistic Gun Light Assault Rifle Launcher Subdweller Shrapnel Launcher Build | -11 -10 -10 -10 ------- Run | Yrd Mat Min Sub Slots Evolved . | . . . . Power . | . . . . Propulsion . | . . . . Utility . | . . . . Weapon . | . . . . Parts Attached 19 | 6 2 . 11 Power 4 | 1 . . 3 Engine 4 | 1 . . 3 Core . | . . . . Reactor . | . . . . Propulsion 4 | 2 . . 2 Treads 2 | 2 . . . Leg 2 | . . . 2 Wheel . | . . . . Hover . | . . . . Flight . | . . . . Utility 5 | 1 2 . 2 Device 2 | . 1 . 1 Storage 1 | 1 . . . Processor 1 | . 1 . . Hackware . | . . . . Protection 1 | . . . 1 Artifact . | . . . . Weapon 6 | 2 . . 4 Energy Gun 1 | . . . 1 Energy Cannon 1 | . . . 1 Ballistic Gun 3 | 2 . . 1 Ballistic Cannon . | . . . . Launcher 1 | . . . 1 Special Weapon . | . . . . Impact Weapon . | . . . . Slashing Weapon . | . . . . Piercing Weapon . | . . . . Special Melee Weapon . | . . . . Unidentified Prototypes . | . . . . Parts Lost 12 | . . . 12 Power 2 | . . . 2 Propulsion 4 | . . . 4 Utility 2 | . . . 2 Weapon 4 | . . . 4 Highest Loss Streak 6 | . . . 6 To Critical Strikes . | . . . . Average Backups 2 | . 1 5 2 Power . | . . 1 . Propulsion . | . . 2 . Utility 1 | . . 2 1 Weapon . | . . . . Tool/Special . | . . . . Unused Backups 3 | . . . 3 Power . | . . . . Propulsion . | . . . . Utility 3 | . . . 3 Weapon . | . . . . Tool/Special . | . . . . Average Slot Usage (%) 88 | . 91 100 84 Engine 13 | . 14 14 13 Treads 15 | . 28 28 6 Leg 12 | . . . 21 Device 6 | . 7 14 3 Storage 1 | . 10 . . Processor 5 | . 2 14 3 Protection 5 | . . . 9 Ballistic Gun 20 | . 28 28 15 Launcher 5 | . . . 8 Peak Build Rating 13 | 6 7 7 13 Average Rating 8 | 5 6 7 9 On Entrance 5 | . 6 7 7 Avg Prop Armor Cover (%) . | . . . . Naked Turns . | . . . . Heaviest Build 35 | 12 13 8 35 Greatest Support 40 | 40 40 40 40 Greatest Overweight (x) 7 | . . . 7 Average Overweight (x) . | . . . . Largest Inventory Capacity 8 | 8 8 5 5 Average Capacity 5 | 7 7 5 5 Most Carried 5 | 5 5 5 5 Average Carried 2 | . 1 5 2 Final Capacity 8 | 8 5 5 5 Final Carried 5 | . 5 5 5 Class Distribution -------------------- 61% | Mutant 34% | Subdweller-Mutant 3% | Scavenger-Mutant Dominant Class ---------------- Mutant | -10/Materials Mutant | -10/Mines Subdweller-Mutant | -10/Subcaves Resources | -11 -10 -10 -10 ----------- Run | Yrd Mat Min Sub Matter Collected 476 | 152 90 69 165 Remotely . | . . . . Salvage Created 191 | . 90 . 101 Parts 13 | . 5 . 8 Haulers Intercepted . | . . . . Recyclers Shooed . | . . . . Parts Field Recycled . | . . . . Retrieved Matter . | . . . . Parts Self-Destructed 18 | . . . 18 Prevented . | . . . . Parts Restored . | . . . . Kills | -11 -10 -10 -10 ------- Run | Yrd Mat Min Sub Combat Hostiles Destroyed 5 | . 2 . 3 Guns 5 | . 2 . 3 Classes Destroyed 2 | . 1 . 1 Grunt 2 | . 2 . . Subdweller 3 | . . . 3 Best Kill Streak 2 | . 1 . 2 Combat Bots Only 2 | . 1 . 2 Max Kills in Single Turn 1 | . 1 . 1 Gunslinging . | . . . . Exploded . | . . . . Melee . | . . . . Uniques/NPCs Destroyed . | . . . . Combat | -11 -10 -10 -10 -------- Run | Yrd Mat Min Sub Hostile Shots Fired 75 | . 16 . 59 Missed 17 | . 2 . 15 Hits 58 | . 14 . 44 Projectile 58 | . 14 . 44 AOE 5 | . . . 5 Damage Taken 1447 | . 160 . 1287 Core 262 | . 12 . 250 Absorbed by Shields . | . . . . Core Remaining (%) 100 | 100 . . . Volleys Fired 27 | . 11 . 16 Largest 2 | . 2 . 2 Hottest 155 | . 40 . 155 Shots Fired 46 | . 22 . 24 Gun 41 | . 22 . 19 Cannon 1 | . . . 1 Launcher 4 | . . . 4 Special . | . . . . Kinetic 40 | . 22 . 18 Thermal 6 | . . . 6 Explosive . | . . . . Electromagnetic . | . . . . Robot Hit Streak 6 | . 4 . 6 Robot Miss Streak 3 | . 3 . 3 Penetration Max . | . . . . Secondary Targets . | . . . . Shots Hit Robots 28 | . 13 . 15 Core Hits 14 | . 6 . 8 Critical Kills . | . . . . Critical Parts Destroyed . | . . . . Critical Strikes 2 | . . . 2 Burn 1 | . . . 1 Destroy 1 | . . . 1 Melee Attacks . | . . . . Impact . | . . . . Slashing . | . . . . Piercing . | . . . . Sneak Attacks . | . . . . Combat Hostiles . | . . . . Follow-up Attacks . | . . . . Damage Inflicted 348 | . 54 . 294 Guns 306 | . 54 . 252 Cannons . | . . . . Explosions 42 | . . . 42 Melee . | . . . . Ramming . | . . . . Kinetic 266 | . 54 . 212 Thermal 82 | . . . 82 Explosive . | . . . . Electromagnetic . | . . . . Impact . | . . . . Slashing . | . . . . Piercing . | . . . . Highest Corruption . | . . . . Average Corruption . | . . . . Corruption Purged . | . . . . Corruption Blocked . | . . . . Overload Shots . | . . . . Overflow Damage . | . . . . Projectiles . | . . . . Explosions . | . . . . Melee . | . . . . Knockbacks . | . . . . Impact . | . . . . Kinetic . | . . . . Secondary . | . . . . Self-Inflicted Damage 26 | . . . 26 Shots 1 | . . . 1 Rammed . | . . . . Targets Rammed . | . . . . Kicked . | . . . . Crushed . | . . . . Highest Temperature 39 | . 12 . 39 Average Temperature 11 | . 8 . 26 Received Heat Transfer 249 | . 87 . 162 Siege Activations . | . . . . Martial Activations . | . . . . Shielding Activations . | . . . . Robots Disrupted . | . . . . Combat Hostiles . | . . . . Robots Corrupted . | . . . . Combat Hostiles . | . . . . Parts Fried . | . . . . Impact Corruptions . | . . . . Robots Melted . | . . . . Combat Hostiles . | . . . . Parts Melted . | . . . . Heat Transferred 222 | . . . 222 Parts Sabotaged . | . . . . Parts Stolen . | . . . . Parts Stripped . | . . . . Power Chain Reactions . | . . . . Alert | -11 -10 -10 -10 ------- Run | Yrd Mat Min Sub Maximum Alert Level . | . . . . Low Security (%) 100 | 100 100 100 . Level 1 . | . . . . Level 2 . | . . . . Level 3 . | . . . . Level 4 . | . . . . Level 5 . | . . . . High Security . | . . . . Max Security . | . . . . Peak Influence 75 | . 75 5 . Initial 5 | . . 5 . Average 12 | . 33 . . Influence Increases 95 | . 95 . . Destroy 0b10 Robot/C 40 | . 40 . . Destroy Leader 10 | . 10 . . Lose Combat Pursuer 45 | . 45 . . Influence Decreases 95 | . 80 15 . Entered New Map 10 | . . 10 . Time Decay 85 | . 80 5 . Squads Dispatched 1 | . 1 . . Investigation . | . . . . Extermination . | . . . . Reinforcement 1 | . 1 . . Assault . | . . . . Garrison . | . . . . Intercept . | . . . . Searches Triggered . | . . . . Construction Impeded . | . . . . Haulers Reinforced . | . . . . Active Scanning Responses . | . . . . Cargo Convoy Interrupts . | . . . . Stealth | -11 -10 -10 -10 --------- Run | Yrd Mat Min Sub Distress Signals . | . . . . Communications Jammed . | . . . . Distress Signals . | . . . . Times Spotted 26 | . 8 . 18 Peak Tracking Total 7 | . 2 . 7 Tactical Retreats 2 | . 2 . . Traps | -11 -10 -10 -10 ------- Run | Yrd Mat Min Sub Traps Triggered 2 | . . . 2 Indirectly . | . . . . Trap Hack Attempts . | . . . . Triggered . | . . . . Disarmed . | . . . . Reprogrammed . | . . . . Reused . | . . . . Traps Extracted . | . . . . Installed . | . . . . Triggered . | . . . . Machines | -11 -10 -10 -10 ---------- Run | Yrd Mat Min Sub Machines Disabled . | . . . . Max in Single Turn . | . . . . Machines Repaired . | . . . . Machines Dismantled . | . . . . Machines Sabotaged . | . . . . Overloaded Fab Kills . | . . . . Hacking | -11 -10 -10 -10 --------- Run | Yrd Mat Min Sub Machines Accessed . | . . . . Terminals . | . . . . Fabricators . | . . . . Repair Stations . | . . . . Recycling Units . | . . . . Scanalyzers . | . . . . Garrison Access . | . . . . Total Hacks . | . . . . Successful . | . . . . Failed . | . . . . Catastrophic . | . . . . Database Lockouts . | . . . . Manual . | . . . . Terminals . | . . . . Fabricators . | . . . . Repair Stations . | . . . . Recycling Units . | . . . . Scanalyzers . | . . . . Garrison Access . | . . . . Terminal Hacks . | . . . . Fabricator Hacks . | . . . . Repair Station Hacks . | . . . . Recycling Unit Hacks . | . . . . Scanalyzer . | . . . . Garrison Access Hacks . | . . . . Unauthorized Hacks . | . . . . Terminals . | . . . . Fabricators . | . . . . Repair Stations . | . . . . Recycling Units . | . . . . Scanalyzers . | . . . . Garrison Access . | . . . . Data Cores Recovered . | . . . . Used . | . . . . Hacking Detections . | . . . . Full Trace Events . | . . . . Feedback Events . | . . . . Feedback Blocked . | . . . . Robot Schematics Acquired . | . . . . Robots Built . | . . . . Authchips . | . . . . Time . | . . . . Total Robot Build Rating . | . . . . Part Schematics Acquired . | . . . . Parts Built . | . . . . Authchips . | . . . . Time . | . . . . Total Part Build Rating . | . . . . Part Studies Acquired . | . . . . Parts Repaired . | . . . . Time . | . . . . Parts Recycled . | . . . . Recycled Matter . | . . . . Retrieved Matter . | . . . . Retrieved Components . | . . . . Parts Scanalyzed . | . . . . Part Schematics Acquired . | . . . . Parts Damaged . | . . . . Bothacking | -11 -10 -10 -10 ------------ Run | Yrd Mat Min Sub Used RIF Installer . | . . . . Robots Hacked . | . . . . Non-combat . | . . . . Combat . | . . . . Robot Hacks Applied . | . . . . Relay Couplers Released . | . . . . Fabnet Peak Effective % . | . . . . Robots Rewired . | . . . . Allies Hacked . | . . . . Hacks Repelled . | . . . . Allies | -11 -10 -10 -10 -------- Run | Yrd Mat Min Sub Total Allies 2 | . . 2 . Largest Group 2 | . . 2 2 Highest-Rated Group 49 | . . 49 49 Highest-Rated Ally 31 | . . 31 31 Total Orders . | . . . . Ally Attacks 2 | . . . 2 Total Damage 41 | . . . 41 Kills . | . . . . Allies Corrupted . | . . . . Allies Melted . | . . . . Intel | -11 -10 -10 -10 ------- Run | Yrd Mat Min Sub Active Infowar (turns) 23 | . . . 23 Optics 23 | . . . 23 Robot Analysis Total . | . . . . Derelict Logs Recovered . | . . . . Drone Launches . | . . . . Drone Recoveries . | . . . . Exploration | -11 -10 -10 -10 ------------- Run | Yrd Mat Min Sub Turns Passed 1415 | 110 231 280 794 Spaces Moved 724 | 33 106 171 414 Core 11 | 9 . . 2 Treads 409 | 24 106 171 108 Legs 304 | . . . 304 Wheels . | . . . . Hover . | . . . . Flight . | . . . . Fastest Speed 50 | 50 160 160 120 Average Speed 167 | 130 160 160 175 Slowest Speed 400 | 160 160 160 400 Overloaded Moves . | . . . . Propulsion Burnouts . | . . . . Robots Hopped . | . . . . Potential Cave-ins . | . . . . Cave-ins Triggered . | . . . . Exploration Rate (%) 27 | 4 22 51 34 Regions Visited 3 Branch Regions 2 Pre-discovered Areas 1 | . . . 1 Known Exits Taken 2 | . 1 1 . Unknown Exits Taken 1 | 1 . . . Scrap Searched 1 | . . 1 . Spaces Dug . | . . . . Terrain Destroyed 40 | . . . 40 Melee . | . . . . Projectile . | . . . . AOE 40 | . . . 40 Terrain Rammed . | . . . . Walls Destroyed . | . . . . Machines Disabled . | . . . . Actions | -11 -10 -10 -10 --------- Run | Yrd Mat Min Sub Total 885 | 100 150 178 457 Wait 89 | 57 24 8 . Move 721 | 32 105 170 414 Hop . | . . . . Pick Up 23 | 5 7 . 11 Fast Attach 2 | 1 . . 1 Attach 16 | 5 2 . 9 Detach 1 | . . . 1 Swap 1 | . . . 1 Drop 5 | . 1 . 4 Fire 27 | . 11 . 16 Melee . | . . . . Ram . | . . . . Kick . | . . . . Crush . | . . . . Escape Stasis . | . . . . Rewire . | . . . . Trap . | . . . . Miscellaneous . | . . . . Route ------- -11/Scrapyard -10/Materials -10/Mines (discovered 2 exits: *Mat / *Sub) -10/Subcaves (discovered 1 exit: [*Mat]) History --------- Turn | Location | Event 21 | -11/Scrapyard | Discovered new exit (range 16) 111 | -11/Scrapyard | Entered Materials 264 | -10/Materials | Discovered new exit (range 16) 310 | -10/Materials | Identified exit to Mines 312 | -10/Materials | Build established: Mutant 342 | -10/Materials | Entered Mines 410 | -10/Mines | Discovered new exit (range 9) 411 | -10/Mines | Assembled infested the area 419 | -10/Mines | Identified exit to Materials 598 | -10/Mines | Discovered new exit (range 7) 610 | -10/Mines | Identified exit to Subcaves 622 | -10/Mines | Entered Subcaves 622 | -10/Subcaves | Accompanied by 2 allies 627 | -10/Subcaves | Led the pair of lost Derelicts to an unsafe place 631 | -10/Subcaves | Learned location of Zion (-7) 631 | -10/Subcaves | Met a Zionite searching for "candidates" 784 | -10/Subcaves | Ambushed by swarm of Subdwellers 811 | -10/Subcaves | Core integrity fell below 50% 813 | -10/Subcaves | Ambushed by Subdweller buried in earth 838 | -10/Subcaves | Lost 6 parts (1p2n1u2w) 915 | -10/Subcaves | Discovered new exit (range 15) 1152 | -10/Subcaves | Build established: Subdweller-Mutant 1372 | -10/Subcaves | Lost 3 parts (1p1u1w) 1415 | -10/Subcaves | Core integrity fell below 20% 1416 | -10/Subcaves | Destroyed by 0D-6O6(R) with Subdweller Shrapnel Launcher Last Messages --------------- Acquired Scrap Shield Fragment. Acquired Sub. Beam Cannon. Acquired 6 matter. Acquired Beamcaster. Acquired Sub. Power Source. Acquired 11 matter. 7L-DOF(R): "GOODGOOD!" 7L-DOF(R) suffers critical hit (Burn). 7L-DOF(R) destroyed. Acquired Sub. Power Source. Acquired Sub. Optics. [Achievement: Spot Them First] Dropped Scrap Shield Fragment. Acquired 1 matter. Acquired 43 matter. Acquired Sub. Machine Gun. Aluminum Leg destroyed. Beamcaster destroyed. Aluminum Leg destroyed. [Achievement: First Step to Greatness] Map ----- +----------------------------------------------------+ | ?????????????????????????????????????????????????? | | ?????????????????????????????????????????????????? | | ?????????????????????????????????????????????????? | | ?????????????????????????????????????????????????? | | ?????????????????????????????????????????????????? | | ?????????????????????????????????????????????????? | | ?????????????????????????????????????????????????? | | ?????????????????????????????????????????????????? | | ?????????????????????????????????????????????????? | | ???????????????????"?????????????????????????????? | | ???????????????????"?????????????????????????????? | | ?????????????####### ????????????????????????????? | | ?????????????#;#;;;;;????????????????????????????? | | ?????????????#; % #???????????????????????????? | | ?????????????#; ;#??????????????????????????? | | ??????????????; % ;&??????????????????????????? | | ??????????????? % ??????????????????????????? | | ???????????????? ?????????????????????????? | | ????????????????? ?????????????????????????? | | ?????????????????? ; ?????????????????????????? | | ??????????????????? ; #???###??????????????????? | | ????????????????????"; ;###;;#?????? ##????????? | | ?????????????????????# ;; ##??? ##"??????? | | ?????????????????????#; ## ""??????? | | ?????????????????????#; ""??????? | | ??????????????????????#; @ R""??????? | | ?????????????????????# ;; & ;## R ""??????? | | ?????????????????????## ; = ;###? ? #???? | | ?????????????????????### #? #???????????? | | ?????????????????????# ## #????????????? | | ????????????????????## #????????????? | | ????????????????????# #????????????? | | ????????????????????##; #????????????? | | ?????????????????????# #????????????? | | ?????????????????????##; ;# ##????????????? | | ??????????????????????#; ;###?????????????? | | ?????????????????????## ;#???????????????? | | ?????????????????????#; #??###??????????? | | ?????????????????????### " ##? #??????????? | | ???????????????????????## &%###? ???????????? | | ????????????????????????## = ;; # #???????????## | | ?????????????????????????# !% & "# #???????????# | | ????????????????????????##; & ; ##???????????# | | ????????????????????????# ; ##?????????## | | ????????????????????????## ""# "#????????## | | ???????????????????####?# !##" ""#????????# | | ???????????????????# #### & "" #????????# | | ????????????????????# ###" &&&"" #????????# | | ?????????????????#### """"##?####????# | | ????????????????## "######??# #???# | +----------------------------------------------------+ Best States ------------- Heat Dissipation 35 Energy Generation 15 Energy Capacity 250 Matter Stores 300 Matter Capacity 300 Sight Range 21 Terrain Scan Density 10 Armor Coverage 800 Evasion (%) 50 Recoil Reduction 2 Item Schematics ----------------- None Robot Schematics ------------------ None Fabricated ------------ Nothing Repaired ---------- Nothing Studied --------- None Alien Tech Used ----------------- None Achievements -------------- Do Not Disturb First Step to Greatness Spot Them First Uninvited Guest Challenges ------------ None Game ------ Seed AluminumCoreThrower Manual? 0 Play Time 00:26:47 Cumulative 0.4 hours Start 2025.12.18 @ 22:05:37 End 2025.12.18 @ 22:35:18 Sessions 1 Manual Loads 0 Difficulty Rogue Special Mode None Game No. 2 Rogue 2 Adventurer 0 Explorer 0 Win Type - Total 0 Types 0/0/0/0/0/0/0/0/0/0 Lore% 0 Gallery% 2 Achievement% 1 Wizard Run 0 Options --------- Layout 1 ASCII 0 Keyboard 0 Movement Mouse Keybinds 0 Fullscreen 1 Font 24/Terminus Map View 50x35 Zoom Use 0% Tactical HUD 0 Map Filters NONE Filters NONE Steam 0 RUN: 24a0485d-d141-48d2-a886-8dd18b5e235a